fUST/lending_fUST_20241226
["ID","MTS","AMOUNT","RATE_DAILY","PERIOD"]
[346679446,1735169446504,-500.0,0.0001269,2]
[346679447,1735169446514,-2135.0,0.00012894,2]
[346679448,1735169446523,-30546.14324,0.00012964,2]
[346679499,1735169975380,9123.5479008,0.00010021,2]
[346679500,1735170049931,1210.76,0.00023,120]
[346679501,1735170264661,600.0,9.998e-05,2]
[346679502,1735170280332,30.20612149,9.998e-05,2]
[346679503,1735170280371,569.79387851,9.998e-05,2]
[346679504,1735170296507,206.0,9.998e-05,2]
[346679565,1735170632596,-300.0,0.00010099,2]
[346679567,1735170632606,-300.0,0.00010099,2]
[346679569,1735170632616,-3542.79044524,0.000101,2]
[346679571,1735170632629,-5083.00437844,0.000101,2]
[346679574,1735170632641,-7209.78737112,0.000101,2]
[346679576,1735170632651,-1461.13522691,0.00010365,2]
[346679578,1735170632660,-1035.72565339,0.00010465,2]
[346679579,1735170632670,-161.74919859,0.00010465,2]
[346679582,1735170632680,-500.0,0.00010771,2]
[346679583,1735170632689,-500.0,0.00010771,2]
[346679585,1735170632699,-500.0,0.00010772,2]
[346679587,1735170632708,-500.0,0.00010772,2]
[346679589,1735170632719,-500.0,0.00010772,2]
[346679591,1735170632729,-500.0,0.00010772,2]
[346679592,1735170632739,-500.0,0.00010772,2]
[346679593,1735170632748,-500.0,0.00010772,2]
[346679594,1735170632758,-478.18016376,0.00010772,2]
[346679595,1735170632768,-500.0,0.00010772,2]
[346679596,1735170632777,-500.0,0.00010772,2]
[346679597,1735170632787,-500.0,0.00010772,2]
[346679598,1735170632798,-500.0,0.00010772,2]
[346679599,1735170632807,-500.0,0.00010772,2]
[346679600,1735170632817,-500.0,0.00010772,2]
[346679601,1735170632827,-502.92477342,0.00010772,2]
[346679602,1735170632837,-3416.1,0.00010772,2]
[346679603,1735170632847,-886.99,0.00010772,2]
[346679604,1735170632856,-500.0,0.00010772,2]
[346679605,1735170632866,-500.0,0.00010772,2]
[346679606,1735170632876,-500.0,0.00010772,2]
[346679607,1735170632886,-596.83,0.00010772,2]
[346679608,1735170632895,-500.0,0.00010772,2]
[346679609,1735170632906,-501.69414364,0.00010772,2]
[346679610,1735170632915,-500.0,0.00010772,2]
[346679611,1735170632925,-818.09,0.00011045,2]
[346679612,1735170632934,-500.0,0.00011045,2]
[346679613,1735170632943,-995.14,0.00011045,2]
[346679614,1735170632953,-500.0,0.00011045,2]
[346679615,1735170632963,-500.0,0.00011045,2]
[346679616,1735170632972,-338.85831815,0.00011045,2]
[346679617,1735170632982,-500.0,0.00011045,2]
[346679618,1735170632991,-517.16,0.00011045,2]
[346679619,1735170633000,-500.0,0.00011045,2]
[346679620,1735170633009,-594.04,0.00011045,2]
[346679621,1735170633019,-500.0,0.00011045,2]
[346679622,1735170633029,-500.43113122,0.00011045,2]
[346679623,1735170633039,-500.0,0.00011045,2]
[346679624,1735170633049,-501.10789209,0.00011045,2]
[346679625,1735170633061,-500.0,0.00011045,2]
[346679626,1735170633071,-500.0,0.00011045,2]
[346679627,1735170633082,-500.0,0.00011045,2]
[346679628,1735170633094,-500.0,0.00011046,2]
[346679629,1735170633108,-513.48,0.00011046,2]
[346679630,1735170633118,-3416.1,0.00011046,2]
[346679631,1735170633129,-886.99,0.00011046,2]
[346679632,1735170633139,-420.0,0.00011108,2]
[346679633,1735170633150,-420.0,0.00011109,2]
[346679634,1735170633160,-500.0,0.00011318,2]
[346679635,1735170633171,-504.45762677,0.00011318,2]
[346679636,1735170633181,-500.0,0.00011318,2]
[346679638,1735170633192,-818.09,0.00011319,2]
[346679639,1735170633202,-500.0,0.00011319,2]
[346679640,1735170633213,-995.14,0.00011319,2]
[346679642,1735170633223,-500.0,0.00011319,2]
[346679644,1735170633232,-500.0,0.00011319,2]
[346679645,1735170633242,-500.0,0.00011319,2]
[346679646,1735170633252,-500.0,0.00011319,2]
[346679647,1735170633262,-582.37078958,0.00011319,2]
[346679648,1735170633272,-500.0,0.00011319,2]
[346679649,1735170633282,-500.0,0.00011319,2]
[346679650,1735170633292,-500.0,0.00011319,2]
[346679651,1735170633302,-320.13,0.0001132,2]
[346679652,1735170633312,-3416.1,0.0001132,2]
[346679653,1735170633322,-886.99,0.0001132,2]
[346679654,1735170633332,-818.09,0.00011593,2]
[346679655,1735170633343,-500.0,0.00011593,2]
[346679656,1735170633354,-995.14,0.00011593,2]
[346679657,1735170633364,-500.0,0.00011593,2]
[346679658,1735170633374,-500.0,0.00011593,2]
[346679659,1735170633384,-228.43,0.00011593,2]
[346679660,1735170633395,-500.0,0.00011593,2]
[346679661,1735170633404,-157.87,0.00011593,2]
[346679662,1735170633414,-500.0,0.00011593,2]
[346679663,1735170633424,-500.0,0.00011593,2]
[346679664,1735170633433,-3416.1,0.00011594,2]
[346679665,1735170633443,-886.99,0.00011594,2]
[346679666,1735170633453,-818.09,0.00011867,2]
[346679667,1735170633463,-500.0,0.00011867,2]
[346679668,1735170633473,-995.14,0.00011867,2]
[346679669,1735170633483,-212.55,0.00011867,2]
[346679670,1735170633493,-500.0,0.00011867,2]
[346679671,1735170633502,-500.0,0.00011867,2]
[346679672,1735170633512,-500.0,0.00011867,2]
[346679673,1735170633522,-500.0,0.00011867,2]
[346679674,1735170633531,-3416.1,0.00011868,2]
[346679675,1735170633541,-886.99,0.00011868,2]
[346679676,1735170633551,-352.2858095,0.00012082,2]
[346679677,1735170633562,-352.2858095,0.00012082,2]
[346679678,1735170633572,-352.2858095,0.00012082,2]
[346679679,1735170633582,-209.551738,0.00012082,2]
[346679680,1735170633595,-818.09,0.00012141,2]
[346679681,1735170633606,-500.0,0.00012141,2]
[346679682,1735170633617,-995.14,0.00012141,2]
[346679683,1735170633627,-500.0,0.00012141,2]
[346679684,1735170633637,-500.0,0.00012141,2]
[346679685,1735170633648,-500.0,0.00012141,2]
[346679686,1735170633657,-281.25,0.00012141,2]
[346679687,1735170633667,-3416.1,0.00012142,2]
[346679688,1735170633678,-886.99,0.00012142,2]
[346679689,1735170633688,-587.0,0.00012218,2]
[346679690,1735170633698,-771.996,0.0001231,2]
[346679691,1735170633709,-226.21309585,0.00012316,2]
[346679692,1735170633718,-151.0,0.00012356,2]
[346679693,1735170633728,-151.0,0.00012356,2]
[346679694,1735170633739,-151.0,0.00012356,2]
[346679695,1735170633749,-151.0,0.00012356,2]
[346679696,1735170633759,-153.0,0.00012356,2]
[346679697,1735170633769,-306.0,0.00012356,2]
[346679698,1735170633779,-153.4211132,0.00012356,2]
[346679699,1735170633791,-214.2031321,0.00012356,2]
[346679700,1735170633801,-307.8460118,0.00012356,2]
[346679701,1735170633812,-214.2031321,0.00012356,2]
[346679702,1735170633821,-153.4211132,0.00012356,2]
[346679703,1735170633831,-153.4211132,0.00012356,2]
[346679704,1735170633847,-214.2031321,0.00012356,2]
[346679705,1735170633860,-153.4211132,0.00012356,2]
[346679706,1735170633876,-153.4211132,0.00012356,2]
[346679707,1735170633891,-818.09,0.00012415,2]
[346679708,1735170633906,-500.0,0.00012415,2]
[346679709,1735170633919,-995.14,0.00012415,2]
[346679710,1735170633932,-500.0,0.00012415,2]
[346679711,1735170633943,-178.08498,0.00012415,2]
[346679712,1735170633954,-178.08498,0.00012415,2]
[346679713,1735170633968,-500.0,0.00012415,2]
[346679714,1735170633981,-528.348674,0.00012415,2]
[346679715,1735170633994,-528.348674,0.00012415,2]
[346679716,1735170634006,-196.96,0.00012415,2]
[346679717,1735170634020,-151.0,0.00012416,2]
[346679718,1735170634033,-151.0,0.00012416,2]
[346679719,1735170634046,-151.0,0.00012416,2]
[346679720,1735170634059,-151.0,0.00012416,2]
[346679721,1735170634072,-3416.1,0.00012416,2]
[346679722,1735170634085,-393.445075,0.00012416,2]
[346679723,1735170634100,-393.445075,0.00012416,2]
[346679724,1735170634114,-886.99,0.00012416,2]
[346679725,1735170634126,-500.0,0.000125,2]
[346679726,1735170634139,-352.0,0.000125,2]
[346679727,1735170634150,-500.0,0.000125,2]
[346679728,1735170634163,-500.0,0.000125,2]
[346679729,1735170634175,-226.21309584,0.00012637,2]
[346679730,1735170634187,-818.09,0.00012689,2]
[346679731,1735170634200,-500.0,0.00012689,2]
[346679732,1735170634214,-995.14,0.00012689,2]
[346679733,1735170634228,-500.0,0.00012689,2]
[346679734,1735170634242,-500.0,0.00012689,2]
[346679735,1735170634256,-286.559039,0.0001269,2]
[346679736,1735170634267,-151.0,0.0001269,2]
[346679737,1735170634278,-151.0,0.0001269,2]
[346679738,1735170634289,-151.0,0.0001269,2]
[346679739,1735170634301,-151.0,0.0001269,2]
[346679740,1735170634313,-3416.1,0.0001269,2]
[346679741,1735170634324,-886.99,0.0001269,2]
[346679742,1735170634336,-151.0,0.00012691,2]
[346679743,1735170634351,-186.475721,0.00012691,2]
[346679744,1735170634363,-186.475721,0.00012691,2]
[346679745,1735170634376,-151.0,0.00012691,2]
[346679746,1735170634389,-531.1705645,0.00012834,2]
[346679747,1735170634401,-151.0,0.00012894,2]
[346679748,1735170634414,-151.0,0.00012894,2]
[346679749,1735170634427,-151.0,0.00012894,2]
[346679750,1735170634440,-995.450839,0.00012894,2]
[346679751,1735170634454,-995.450839,0.00012894,2]
[346679752,1735170634467,-151.0,0.00012894,2]
[346679753,1735170634480,-151.0,0.00012894,2]
[346679754,1735170634491,-151.0,0.00012894,2]
[346679755,1735170634502,-151.0,0.00012894,2]
[346679756,1735170634513,-151.0,0.00012894,2]
[346679757,1735170634524,-151.0,0.00012894,2]
[346679758,1735170634535,-151.0,0.00012894,2]
[346679759,1735170634547,-151.0,0.00012894,2]
[346679760,1735170634560,-151.0,0.000129,2]
[346679761,1735170634573,-151.0,0.000129,2]
[346679762,1735170634586,-360.371589,0.000129,2]
[346679763,1735170634600,-360.371589,0.000129,2]
[346679764,1735170634615,-151.0,0.000129,2]
[346679765,1735170634627,-150.0,0.00012949,2]
[346679766,1735170634637,-534.0,0.00012949,2]
[346679767,1735170634648,-2127.0,0.00012949,2]
[346679768,1735170634661,-2355.0,0.00012949,2]
[346679769,1735170634673,-178.08498,0.00012949,2]
[346679770,1735170634684,-178.08498,0.00012949,2]
[346679771,1735170634697,-528.348674,0.00012949,2]
[346679772,1735170634710,-528.348674,0.00012949,2]
[346679773,1735170634722,-226.21309584,0.00012958,2]
[346679774,1735170634734,-818.09,0.00012963,2]
[346679775,1735170634745,-500.0,0.00012963,2]
[346679776,1735170634756,-995.14,0.00012963,2]
[346679777,1735170634768,-500.0,0.00012963,2]
[346679778,1735170634779,-500.0,0.00012963,2]
[346679779,1735170634791,-151.0,0.00012964,2]
[346679780,1735170634803,-186.475721,0.00012964,2]
[346679781,1735170634814,-186.475721,0.00012964,2]
[346679782,1735170634825,-151.0,0.00012964,2]
[346679783,1735170634837,-166.461482,0.00012964,2]
[346679784,1735170634850,-166.461482,0.00012964,2]
[346679785,1735170634861,-151.0,0.00012964,2]
[346679786,1735170634872,-199.213771,0.00012964,2]
[346679787,1735170634884,-151.0,0.00012964,2]
[346679788,1735170634896,-151.0,0.00012964,2]
[346679789,1735170634908,-151.0,0.00012964,2]
[346679790,1735170634921,-151.0,0.00012964,2]
[346679791,1735170634933,-151.0,0.00012964,2]
[346679792,1735170634944,-3416.1,0.00012964,2]
[346679793,1735170634956,-393.445075,0.00012964,2]
[346679794,1735170634967,-393.445075,0.00012964,2]
[346679795,1735170634978,-886.99,0.00012964,2]
[346679796,1735170634989,-233.059526,0.00012965,2]
[346679797,1735170635000,-151.0,0.00012965,2]
[346679798,1735170635011,-151.0,0.00012965,2]
[346679799,1735170635023,-152.272594,0.00012965,2]
[346679800,1735170635035,-151.0,0.00012966,2]
[346679801,1735170635046,-151.0,0.00012966,2]
[346679802,1735170635057,-151.0,0.00012966,2]
[346679803,1735170635068,-151.0,0.00012966,2]
[346679804,1735170635080,-151.0,0.00012966,2]
[346679805,1735170635091,-151.0,0.00012966,2]
[346679806,1735170635102,-512.802,0.00012999,2]
[346679807,1735170635113,-151.0,0.00012999,2]
[346679808,1735170635124,-151.0,0.00012999,2]
[346679809,1735170635136,-187.81090904,0.00012999,2]
[346679810,1735170635148,-523.26,0.00013,2]
[346679811,1735170635159,-222.0,0.00013,2]
[346679812,1735170635171,-151.0,0.00013,2]
[346679813,1735170635182,-157.430716,0.00013,2]
[346679814,1735170635194,-151.0,0.00013,2]
[346679815,1735170635205,-995.450839,0.00013,2]
[346679816,1735170635217,-995.450839,0.00013,2]
[346679817,1735170635228,-151.0,0.00013,2]
[346679818,1735170635240,-151.0,0.00013,2]
[346679819,1735170635251,-151.0,0.00013,2]
[346679820,1735170635263,-151.0,0.00013,2]
[346679821,1735170635275,-151.0,0.00013003,2]
[346679822,1735170635286,-151.0,0.00013003,2]
[346679823,1735170635297,-360.371589,0.00013003,2]
[346679824,1735170635309,-360.371589,0.00013003,2]
[346679825,1735170635320,-151.0,0.00013003,2]
[346679826,1735170635331,-178.08498,0.00013003,2]
[346679827,1735170635487,-178.08498,0.00013003,2]
[346679828,1735170635500,-528.348674,0.00013003,2]
[346679829,1735170635509,-528.348674,0.00013003,2]
[346679830,1735170635519,-186.475721,0.00013041,2]
[346679831,1735170635528,-186.475721,0.00013041,2]
[346679832,1735170635537,-151.0,0.00013041,2]
[346679833,1735170635547,-166.461482,0.00013041,2]
[346679834,1735170635557,-166.461482,0.00013041,2]
[346679835,1735170635567,-151.0,0.00013041,2]
[346679836,1735170635576,-151.0,0.00013041,2]
[346679837,1735170635586,-500.0,0.0001314,2]
[346679838,1735170635597,-223.936798,0.00013141,2]
[346679839,1735170635606,-151.0,0.00013142,2]
[346679840,1735170635616,-155.0,0.00013183,2]
[346679841,1735170635626,-3774.83542399,0.00013191,2]
[346679842,1735170635636,-151.0,0.00013191,2]
[346679843,1735170635645,-151.0,0.00013191,2]
[346679844,1735170635655,-151.0,0.00013191,2]
[346679845,1735170635665,-151.0,0.00013191,2]
[346679846,1735170635675,-818.09,0.00013237,2]
[346679847,1735170635685,-500.0,0.00013237,2]
[346679848,1735170635694,-995.14,0.00013237,2]
[346679849,1735170635703,-500.0,0.00013237,2]
[346679850,1735170635713,-500.0,0.00013237,2]
[346679851,1735170635723,-151.0,0.00013238,2]
[346679852,1735170635732,-360.371589,0.00013238,2]
[346679853,1735170635742,-360.371589,0.00013238,2]
[346679854,1735170635751,-151.0,0.00013238,2]
[346679855,1735170635761,-151.0,0.00013238,2]
[346679856,1735170635770,-151.0,0.00013238,2]
[346679857,1735170635780,-151.0,0.00013238,2]
[346679858,1735170635793,-995.450839,0.00013238,2]
[346679859,1735170635802,-995.450839,0.00013238,2]
[346679860,1735170635813,-151.0,0.00013238,2]
[346679861,1735170635822,-151.0,0.00013238,2]
[346679862,1735170635831,-151.0,0.00013238,2]
[346679863,1735170635843,-151.0,0.00013238,2]
[346679864,1735170635853,-151.0,0.00013238,2]
[346679865,1735170635863,-151.0,0.00013238,2]
[346679866,1735170635872,-151.0,0.00013238,2]
[346679867,1735170635883,-3416.1,0.00013238,2]
[346679868,1735170635892,-393.445075,0.00013238,2]
[346679869,1735170635902,-393.445075,0.00013238,2]
[346679870,1735170635911,-886.99,0.00013238,2]
[346679871,1735170635921,-178.08498,0.00013238,2]
[346679872,1735170635930,-178.08498,0.00013238,2]
[346679873,1735170635939,-528.348674,0.00013238,2]
[346679874,1735170635949,-528.348674,0.00013238,2]
[346679875,1735170635958,-151.0,0.00013238,2]
[346679876,1735170635967,-151.0,0.00013238,2]
[346679877,1735170635977,-151.0,0.00013238,2]
[346679878,1735170635987,-155.55447,0.00013238,2]
[346679879,1735170635996,-186.475721,0.00013239,2]
[346679880,1735170636006,-186.475721,0.00013239,2]
[346679881,1735170636015,-151.0,0.00013239,2]
[346679882,1735170636025,-166.461482,0.00013239,2]
[346679883,1735170636035,-166.461482,0.00013239,2]
[346679884,1735170636044,-500.0,0.00013241,2]
[346679885,1735170636054,-500.0,0.00013251,2]
[346679886,1735170636063,-163.121412,0.00013278,2]
[346679887,1735170636073,-226.21309584,0.00013278,2]
[346679888,1735170636083,-182.692,0.00013335,2]
[346679889,1735170636093,-191.167,0.00013335,2]
[346679890,1735170636103,-150.0,0.00013335,2]
[346679891,1735170636112,-251.462,0.00013335,2]
[346679892,1735170636122,-186.475721,0.00013413,2]
[346679893,1735170636133,-186.475721,0.00013413,2]
[346679894,1735170636142,-151.0,0.00013413,2]
[346679895,1735170636152,-151.0,0.00013413,2]
[346679896,1735170636162,-166.461482,0.00013413,2]
[346679897,1735170636171,-166.461482,0.00013413,2]
[346679898,1735170636181,-360.371589,0.00013413,2]
[346679899,1735170636190,-360.371589,0.00013413,2]
[346679900,1735170636199,-823.0,0.00013438,2]
[346679901,1735170636209,-818.09,0.00013511,2]
[346679902,1735170636220,-500.0,0.00013511,2]
[346679903,1735170636229,-995.14,0.00013511,2]
[346679904,1735170636239,-500.0,0.00013511,2]
[346679905,1735170636248,-545.55,0.00013511,2]
[346679906,1735170636258,-151.0,0.00013512,2]
[346679907,1735170636267,-151.0,0.00013512,2]
[346679908,1735170636277,-151.0,0.00013512,2]
[346679909,1735170636286,-151.0,0.00013512,2]
[346679910,1735170636296,-995.450839,0.00013512,2]
[346679911,1735170636306,-995.450839,0.00013512,2]
[346679912,1735170636316,-151.0,0.00013512,2]
[346679913,1735170636326,-151.0,0.00013512,2]
[346679914,1735170636335,-151.0,0.00013512,2]
[346679915,1735170636348,-151.0,0.00013512,2]
[346679916,1735170636357,-151.0,0.00013512,2]
[346679917,1735170636366,-151.0,0.00013512,2]
[346679918,1735170636375,-151.0,0.00013512,2]
[346679919,1735170636384,-151.0,0.00013512,2]
[346679920,1735170636393,-279.57986,0.00013512,2]
[346679921,1735170636403,-151.0,0.00013512,2]
[346679922,1735170636412,-3416.1,0.00013512,2]
[346679923,1735170636421,-393.445075,0.00013512,2]
[346679924,1735170636431,-393.445075,0.00013512,2]
[346679925,1735170636440,-886.99,0.00013512,2]
[346679926,1735170636449,-151.0,0.00013512,2]
[346679927,1735170636459,-151.0,0.00013512,2]
[346679928,1735170636469,-151.0,0.00013512,2]
[346679929,1735170636478,-151.0,0.00013562,2]
[346679930,1735170636487,-666.0,0.00013599,2]
[346679931,1735170636497,-32473.11496532,0.00013599,2]
[346679932,1735170636507,-151.0,0.00013599,2]
[346679933,1735170636517,-151.0,0.00013599,2]
[346679934,1735170636526,-210.02746359,0.00013599,2]
[346679935,1735170636536,-151.0,0.00013599,2]
[346679936,1735170636546,-151.0,0.00013599,2]
[346679937,1735170636555,-995.450839,0.00013599,2]
[346679938,1735170636564,-995.450839,0.00013599,2]
[346679939,1735170636574,-263.489456,0.00013599,2]
[346679940,1735170636583,-151.0,0.00013599,2]
[346679941,1735170636593,-151.0,0.00013599,2]
[346679942,1735170636602,-151.0,0.00013599,2]
[346679943,1735170636612,-151.0,0.00013599,2]
[346679944,1735170636621,-233.844919,0.00013599,2]
[346679945,1735170636631,-151.0,0.00013599,2]
[346679946,1735170636640,-151.0,0.00013599,2]
[346679947,1735170636649,-226.21309584,0.00013599,2]
[346679948,1735170636659,-151.0,0.00013599,2]
[346679949,1735170636668,-393.445075,0.00013599,2]
[346679950,1735170636678,-393.445075,0.00013599,2]
[346679951,1735170636687,-178.08498,0.00013599,2]
[346679952,1735170636697,-178.08498,0.00013599,2]
[346679953,1735170636706,-178.08498,0.00013599,2]
[346679954,1735170636715,-178.08498,0.00013599,2]
[346679955,1735170636725,-528.348674,0.00013599,2]
[346679956,1735170636736,-528.348674,0.00013599,2]
[346679957,1735170636745,-528.348674,0.00013599,2]
[346679958,1735170636755,-528.348674,0.00013599,2]
[346679959,1735170636764,-151.0,0.00013599,2]
[346679960,1735170636774,-151.0,0.00013599,2]
[346679961,1735170636784,-151.0,0.00013599,2]
[346679962,1735170636794,-275.0,0.00013635,2]
[346679963,1735170636803,-352.2858095,0.00013644,2]
[346679964,1735170636813,-352.2858095,0.00013644,2]
[346679965,1735170636823,-151.0,0.00013698,2]
[346679966,1735170636833,-151.0,0.00013698,2]
[346679967,1735170636844,-166.461482,0.00013698,2]
[346679968,1735170636853,-166.461482,0.00013698,2]
[346679969,1735170636863,-166.461482,0.00013698,2]
[346679970,1735170636872,-166.461482,0.00013698,2]
[346679971,1735170636883,-360.371589,0.00013698,2]
[346679972,1735170636892,-360.371589,0.00013698,2]
[346679973,1735170636902,-360.371589,0.00013698,2]
[346679974,1735170636912,-360.371589,0.00013698,2]
[346679975,1735170636921,-151.0,0.00013698,2]
[346679976,1735170636931,-995.450839,0.00013698,2]
[346679977,1735170636941,-995.450839,0.00013698,2]
[346679978,1735170636950,-151.0,0.00013698,2]
[346679979,1735170636959,-151.0,0.00013698,2]
[346679980,1735170636969,-500.0,0.00013698,2]
[346679981,1735170636979,-151.0,0.00013698,2]
[346679982,1735170636988,-151.0,0.00013698,2]
[346679983,1735170636998,-9605.90414752,0.00013698,2]
[346679984,1735170637007,-151.0,0.00013699,2]
[346679985,1735170637017,-151.0,0.00013699,2]
[346679986,1735170637026,-151.0,0.00013699,2]
[346679987,1735170637035,-161931.50824288,0.00013699,2]
[346679988,1735170637045,-604.421356,0.00013699,2]
[346679989,1735170637055,-151.0,0.00013699,2]
[346679990,1735170637064,-151.0,0.00013699,2]
[346679991,1735170637073,-186.475721,0.00013699,2]
[346679992,1735170637083,-186.475721,0.00013699,2]
[346679993,1735170637092,-186.475721,0.00013699,2]
[346679994,1735170637102,-186.475721,0.00013699,2]
[346679995,1735170637112,-186.475721,0.00013699,2]
[346679996,1735170637121,-186.475721,0.00013699,2]
[346679997,1735170637130,-151.0,0.00013699,2]
[346679998,1735170637141,-151.0,0.00013699,2]
[346679999,1735170637150,-151.0,0.00013699,2]
[346680000,1735170637159,-161.556486,0.00013699,2]
[346680001,1735170637169,-166.461482,0.00013699,2]
[346680002,1735170637178,-166.461482,0.00013699,2]
[346680003,1735170637187,-166.461482,0.00013699,2]
[346680004,1735170637196,-166.461482,0.00013699,2]
[346680005,1735170637206,-166.461482,0.00013699,2]
[346680006,1735170637216,-166.461482,0.00013699,2]
[346680007,1735170637226,-166.461482,0.00013699,2]
[346680008,1735170637235,-166.461477,0.00013699,2]
[346680009,1735170637244,-150.03,0.00013699,2]
[346680010,1735170637253,-150.03,0.00013699,2]
[346680011,1735170637262,-150.03,0.00013699,2]
[346680012,1735170637272,-199.26180557,0.00013699,2]
[346680013,1735170637281,-150.63967868,0.00013699,2]
[346680014,1735170637291,-360.371589,0.00013699,2]
[346680015,1735170637301,-360.371589,0.00013699,2]
[346680016,1735170637311,-360.371589,0.00013699,2]
[346680017,1735170637320,-360.371589,0.00013699,2]
[346680018,1735170637331,-360.371589,0.00013699,2]
[346680019,1735170637341,-360.371589,0.00013699,2]
[346680020,1735170637351,-360.371589,0.00013699,2]
[346680021,1735170637360,-360.371593,0.00013699,2]
[346680022,1735170637370,-151.0,0.00013699,2]
[346680023,1735170637379,-151.0,0.00013699,2]
[346680024,1735170637388,-151.0,0.00013699,2]
[346680025,1735170637397,-151.0,0.00013699,2]
[346680026,1735170637407,-151.0,0.00013699,2]
[346680027,1735170637417,-151.0,0.00013699,2]
[346680028,1735170637426,-151.0,0.00013699,2]
[346680029,1735170637435,-151.0,0.00013699,2]
[346680030,1735170637445,-237.409564,0.00013699,2]
[346680031,1735170637456,-151.0,0.00013699,2]
[346680032,1735170637469,-151.0,0.00013699,2]
[346680033,1735170637481,-260.130644,0.00013699,2]
[346680034,1735170637491,-151.0,0.00013699,2]
[346680035,1735170637500,-995.450839,0.00013699,2]
[346680036,1735170637511,-151.0,0.00013699,2]
[346680037,1735170637521,-995.450839,0.00013699,2]
[346680038,1735170637530,-151.0,0.00013699,2]
[346680039,1735170637539,-995.450839,0.00013699,2]
[346680040,1735170637549,-995.450839,0.00013699,2]
[346680041,1735170637558,-995.450839,0.00013699,2]
[346680042,1735170637568,-151.0,0.00013699,2]
[346680043,1735170637577,-995.450839,0.00013699,2]
[346680044,1735170637586,-995.450839,0.00013699,2]
[346680045,1735170637596,-995.450837,0.00013699,2]
[346680046,1735170637606,-151.0,0.00013699,2]
[346680047,1735170637615,-151.0,0.00013699,2]
[346680048,1735170637625,-260.042232,0.00013699,2]
[346680049,1735170637635,-151.0,0.00013699,2]
[346680050,1735170637644,-151.0,0.00013699,2]
[346680051,1735170637654,-151.0,0.00013699,2]
[346680052,1735170637664,-151.0,0.00013699,2]
[346680053,1735170637673,-151.0,0.00013699,2]
[346680054,1735170637683,-151.0,0.00013699,2]
[346680055,1735170637692,-151.0,0.00013699,2]
[346680056,1735170637702,-227.19024,0.00013699,2]
[346680057,1735170637711,-151.0,0.00013699,2]
[346680058,1735170637721,-155.359273,0.00013699,2]
[346680059,1735170637731,-151.0,0.00013699,2]
[346680060,1735170637741,-151.0,0.00013699,2]
[346680061,1735170637751,-151.0,0.00013699,2]
[346680062,1735170637760,-151.0,0.00013699,2]
[346680063,1735170637770,-151.0,0.00013699,2]
[346680064,1735170637780,-151.0,0.00013699,2]
[346680065,1735170637792,-151.0,0.00013699,2]
[346680066,1735170637802,-151.0,0.00013699,2]
[346680067,1735170637812,-151.0,0.00013699,2]
[346680068,1735170637821,-151.0,0.00013699,2]
[346680069,1735170637830,-246.795344,0.00013699,2]
[346680070,1735170637843,-150.03,0.00013699,2]
[346680071,1735170637852,-150.03,0.00013699,2]